[Event "69th RUS-ch Women Higher League 2019"]
[Site "Yaroslavl"]
[Date "2019.07.03"]
[Round "6.16"]
[White "Diakonova, Ekaterina"]
[Black "Maltsevskaya, Aleksandra"]
[Result "1-0"]
[ECO "C09"]
[WhiteElo "2196"]
[BlackElo "2316"]
[Annotator "NA"]
[PlyCount "149"]
[EventDate "2019.06.27"]
[EventType "swiss"]
[EventCountry "RUS"]
[SourceTitle "playchess.com"]
[Source "ChessBase"]
[SourceQuality "1"]
[TimeControl "40/5400+30:1800+30"]

1. e4 {[%emt 0:00:00]} e6 {[%emt 0:00:00]} 2. d4 {[%emt 0:00:00]} d5 {[%emt 0:00:00]} 3. Nd2 {[%emt 0:00:00]} c5 {[%emt 0:00:00]} 4. Ngf3 {[%emt 0:01:44]} Nc6 {[%emt 0:00:00]} 5. exd5 {[%emt 0:03:10]} exd5 {[%emt 0:01:49]} 6. Be2 {[%emt 0:02:20]} cxd4 {[%emt 0:06:39]} 7. O-O {[%emt 0:02:07]} Bd6 {[%emt 0:00:20]} 8. Re1 {[%emt 0:02:00]} Nge7 {[%emt 0:00:30]} 9. Nb3 {[%emt 0:02:01]} O-O {[%emt 0:04:04]} 10. Bg5 {[%emt 0:07:49]} f6 {[%emt 0:01:30]} 11. Bh4 {[%emt 0:04:25]} Nf5 {[%emt 0:06:57]} 12. Bg3 {[%emt 0:00:19]} Nxg3 {[%emt 0:17:10]} 13. hxg3 {[%emt 0:02:29]} f5 {[%emt 0:01:11]} 14. Nbxd4 {[%emt 0:14:49]} f4 {[%emt 0:11:21]} 15. Nb5 {[%emt 0:03:03]} Bb8 {[%emt 0:08:06]} 16. c4 {[%emt 0:02:51]} fxg3 {[%emt 0:07:22]} 17. Qxd5+ {[%emt 0:01:11]} Qxd5 {[%emt 0:00:13]} 18. cxd5 {[%emt 0:00:05]} gxf2+ {[%emt 0:01:37]} 19. Kxf2 {[%emt 0:00:06]} Nb4 {[%emt 0:00:06]} 20. Rac1 {[%emt 0:06:14]} a6 {[%emt 0:02:11]} 21. Nc7 {[%emt 0:02:45]} Ra7 {[%emt 0:17:38]} 22. d6 {[%emt 0:06:23]} b5 {[%emt 0:00:27]} 23. a4 {[%emt 0:05:52]} Bd7 {[%emt 0:05:53]} 24. Kg1 {[%emt 0:04:13]} Bxc7 {[%emt 0:01:59]} 25. dxc7 {[%emt 0:00:22]} Rc8 {[%emt 0:00:15]} 26. Ne5 {[%emt 0:05:12]} Raxc7 {[%emt 0:00:43]} 27. Rxc7 {[%emt 0:01:17]} Rxc7 {[%emt 0:00:04]} 28. Nxd7 {[%emt 0:03:48]} Rxd7 {[%emt 0:00:05]} 29. axb5 {[%emt 0:00:15]} axb5 {[%emt 0:00:11]} 30. Bxb5 {[%emt 0:00:07]} Rd4 {[%emt 0:02:30]} 31. Rc1 {[%emt 0:07:10]} Rd2 {[%emt 0:01:24]} 32. Bc4+ {[%emt 0:02:02]} Kh8 {[%emt 0:01:28]} 33. Re1 {[%emt 0:01:30]} g5 {[%emt 0:00:44]} 34. Re2 {[%emt 0:02:25]} Rd1+ {[%emt 0:00:09]} 35. Kf2 {[%emt 0:01:13]} Kg7 {[%emt 0:00:16]} 36. b3 {[%emt 0:00:51]} h5 {[%emt 0:00:54]} 37. Re7+ {[%emt 0:03:15]} Kf6 {[%emt 0:00:14]} 38. Rf7+ {[%emt 0:00:17]} Ke5 {[%emt 0:02:15]} 39. Re7+ {[%emt 0:00:15]} Kf6 {[%emt 0:00:28]} 40. Rf7+ {[%emt 0:00:00]} Ke5 {[%emt 0:00:00]} 41. Re7+ {[%emt 0:00:35]} Kf5 {[%emt 0:05:46]} 42. Rf7+ {[%emt 0:01:50]} Kg6 {[%emt 0:05:43]} 43. Rb7 {[%emt 0:01:40]} Na2 {[%emt 0:00:14]} 44. Bf7+ {[%emt 0:01:56]} Kf5 {[%emt 0:00:22]} 45. Bxh5 {[%emt 0:01:12]} Rd2+ {[%emt 0:00:05]} 46. Kg3 {[%emt 0:07:51]} Rd3+ {[%emt 0:02:03]} 47. Bf3 {[%emt 0:00:59]} Nc1 {[%emt 0:01:08]} 48. Rb5+ {[%emt 0:05:07]} Kf6 {[%emt 0:00:08]} 49. b4 {[%emt 0:00:33]} Ne2+ {[%emt 0:01:51]} 50. Kf2 {[%emt 0:00:36]} Nc3 {[%emt 0:01:41]} 51. Rb6+ {[%emt 0:03:15]} Kf5 {[%emt 0:02:24]} 52. g4+ {[%emt 0:01:07]} Ke5 {[%emt 0:00:07]} 53. Rg6 {[%emt 0:00:35]} Ne4+ {[%emt 0:00:23]} 54. Bxe4 {[%emt 0:05:34]} Kxe4 {[%emt 0:00:06]} 55. Rxg5 {[%emt 0:00:03]} Kf4 {[%emt 0:00:13]} 56. Rc5 {[%emt 0:00:31]} Kxg4 {[%emt 0:02:05]} 57. Ke2 {[%emt 0:00:38]} Rb3 {[%emt 0:00:06]} 58. b5 {[%emt 0:00:04]} Kf4 {[%emt 0:00:03]} 59. Kd2 {[%emt 0:00:05]} Ke4 {[%emt 0:00:15]} 60. Kc2 {[%emt 0:00:10]} Kd4 {[%emt 0:00:34]} 61. Rh5 {[%emt 0:00:40]} Rc3+ {[%emt 0:00:12]} 62. Kb2 {[%emt 0:00:15]} Rc8 {[%emt 0:00:16]} 63. Kb3 {[%emt 0:00:36]} Rc5 {[%emt 0:08:05]} 64. Rh4+ {[%emt 0:00:07]} Kd5 {[%emt 0:00:04]} 65. Kb4 {[%emt 0:00:42]} Rc8 {[%emt 0:02:05]} 66. Rh6 {[%emt 0:00:29]} Rc1 {[%emt 0:04:32]} 67. Ka5 {[%emt 0:01:55]} Rc8 {[%emt 0:00:04]} 68. b6 {[%emt 0:03:00]} Rc1 {[%emt 0:02:08]} 69. Ka6 {[%emt 0:01:14]} Kc5 {[%emt 0:00:04]} 70. Ka7 {[%emt 0:01:17]} Ra1+ {[%emt 0:00:50]} 71. Kb8 {[%emt 0:00:36]} Rb1 {[%emt 0:00:34]} 72. b7 {[%emt 0:00:40]} Kb5 {[%emt 0:01:44]} 73. Kc7 {[%emt 0:00:48]} Rc1+ {[%emt 0:00:05]} 74. Kd7 {[%emt 0:00:13]} Rd1+ {[%emt 0:00:04]} 75. Rd6 {[%emt 0:00:04]} 1-0

[Event "69th RUS-ch Women Higher League 2019"]
[Site "Yaroslavl"]
[Date "2019.07.03"]
[Round "6.17"]
[White "Afonasieva, Anna"]
[Black "Tokmakova, Ulyana"]
[Result "0-1"]
[ECO "E15"]
[WhiteElo "2303"]
[BlackElo "1878"]
[Annotator "NA"]
[PlyCount "174"]
[EventDate "2019.06.27"]
[EventType "swiss"]
[EventCountry "RUS"]
[SourceTitle "playchess.com"]
[Source "ChessBase"]
[SourceQuality "1"]
[TimeControl "40/5400+30:1800+30"]

1. d4 {[%emt 0:00:00]} Nf6 {[%emt 0:00:00]} 2. Nf3 {[%emt 0:00:00]} e6 {[%emt 0:00:00]} 3. c4 {[%emt 0:00:00]} b6 {[%emt 0:00:00]} 4. g3 {[%emt 0:00:00]} Ba6 {[%emt 0:00:00]} 5. b3 {[%emt 0:00:02]} Bb4+ {[%emt 0:00:08]} 6. Bd2 {[%emt 0:00:10]} Be7 {[%emt 0:00:07]} 7. Bg2 {[%emt 0:00:08]} c6 {[%emt 0:00:06]} 8. O-O {[%emt 0:00:24]} d5 {[%emt 0:00:12]} 9. Ne5 {[%emt 0:00:50]} Nfd7 {[%emt 0:00:40]} 10. Nxd7 {[%emt 0:03:18]} Nxd7 {[%emt 0:00:25]} 11. Nc3 {[%emt 0:02:35]} Rc8 {[%emt 0:06:25]} 12. e4 {[%emt 0:02:06]} dxc4 {[%emt 0:03:19]} 13. Re1 {[%emt 0:01:06]} O-O {[%emt 0:01:58]} 14. Qe2 {[%emt 0:05:37]} Nb8 {[%emt 0:14:46]} 15. Qe3 {[%emt 0:03:11]} Qd7 {[%emt 0:10:10]} 16. d5 {[%emt 0:07:11]} Bc5 {[%emt 0:03:08]} 17. Qg5 {[%emt 0:04:22]} Qd8 {[%emt 0:13:54]} 18. Qf4 {[%emt 0:10:40]} Qe7 {[%emt 0:06:31]} 19. Rac1 {[%emt 0:25:52]} cxb3 {[%emt 0:05:27]} 20. axb3 {[%emt 0:00:09]} e5 {[%emt 0:06:01]} 21. Qf3 {[%emt 0:02:11]} Bd4 {[%emt 0:04:26]} 22. Ra1 {[%emt 0:06:02]} Rcd8 {[%emt 0:05:00]} 23. dxc6 {[%emt 0:04:31]} Bxc3 {[%emt 0:02:32]} 24. Qxc3 {[%emt 0:00:14]} Rc8 {[%emt 0:02:20]} 25. Rxa6 {[%emt 0:12:36]} Nxa6 {[%emt 0:01:05]} 26. Ra1 {[%emt 0:00:05]} Nb8 {[%emt 0:01:03]} 27. Qb4 {[%emt 0:02:51]} Qe6 {[%emt 0:00:59]} 28. Be3 {[%emt 0:03:02]} Nxc6 {[%emt 0:00:18]} 29. Qa4 {[%emt 0:00:08]} Rfd8 {[%emt 0:01:30]} 30. Bf1 {[%emt 0:00:24]} Rc7 {[%emt 0:01:16]} 31. Rc1 {[%emt 0:00:54]} Qd6 {[%emt 0:02:43]} 32. f4 {[%emt 0:02:37]} exf4 {[%emt 0:04:42]} 33. gxf4 {[%emt 0:01:11]} Ne7 {[%emt 0:01:28]} 34. Rxc7 {[%emt 0:00:29]} Qxc7 {[%emt 0:00:02]} 35. Bc4 {[%emt 0:00:50]} Ng6 {[%emt 0:01:23]} 36. e5 {[%emt 0:01:09]} Qe7 {[%emt 0:01:17]} 37. Be2 {[%emt 0:00:31]} Nf8 {[%emt 0:00:59]} 38. Qe4 {[%emt 0:00:26]} f6 {[%emt 0:01:23]} 39. Bc4+ {[%emt 0:00:35]} Kh8 {[%emt 0:00:11]} 40. e6 {[%emt 0:00:00]} b5 {[%emt 0:00:00]} 41. Bd5 {[%emt 0:03:58]} Rxd5 {[%emt 0:05:40]} 42. Qxd5 {[%emt 0:00:05]} Qxe6 {[%emt 0:00:27]} 43. Qc5 {[%emt 0:01:43]} Kg8 {[%emt 0:01:32]} 44. b4 {[%emt 0:00:59]} a6 {[%emt 0:01:24]} 45. Kf2 {[%emt 0:01:49]} Nd7 {[%emt 0:01:31]} 46. Qc7 {[%emt 0:02:27]} f5 {[%emt 0:02:30]} 47. Bc5 {[%emt 0:05:06]} h6 {[%emt 0:03:08]} 48. Bd4 {[%emt 0:03:02]} Nf6 {[%emt 0:01:25]} 49. Be5 {[%emt 0:03:08]} g5 {[%emt 0:05:05]} 50. Bxf6 {[%emt 0:02:24]} Qxf6 {[%emt 0:00:13]} 51. Qc8+ {[%emt 0:01:19]} Kg7 {[%emt 0:00:31]} 52. Qd7+ {[%emt 0:00:34]} Qf7 {[%emt 0:00:43]} 53. Qd4+ {[%emt 0:00:34]} Kg6 {[%emt 0:00:13]} 54. Qd6+ {[%emt 0:03:12]} Qf6 {[%emt 0:00:14]} 55. Qd2 {[%emt 0:00:12]} Qb6+ {[%emt 0:00:53]} 56. Kg2 {[%emt 0:00:11]} Qc6+ {[%emt 0:00:10]} 57. Kg1 {[%emt 0:01:15]} Qf3 {[%emt 0:01:54]} 58. fxg5 {[%emt 0:01:18]} hxg5 {[%emt 0:00:41]} 59. Qd6+ {[%emt 0:01:53]} Kh5 {[%emt 0:00:05]} 60. Qe7 {[%emt 0:00:28]} Kg4 {[%emt 0:01:09]} 61. Qd6 {[%emt 0:01:14]} Qe3+ {[%emt 0:05:45]} 62. Kg2 {[%emt 0:00:31]} Qe4+ {[%emt 0:01:35]} 63. Kg1 {[%emt 0:00:07]} f4 {[%emt 0:01:31]} 64. Qd7+ {[%emt 0:00:47]} Kh4 {[%emt 0:00:45]} 65. Qd8 {[%emt 0:04:14]} Qe1+ {[%emt 0:02:47]} 66. Kg2 {[%emt 0:00:04]} Qe2+ {[%emt 0:01:05]} 67. Kg1 {[%emt 0:00:07]} Qe3+ {[%emt 0:00:24]} 68. Kf1 {[%emt 0:00:20]} Qc1+ {[%emt 0:01:01]} 69. Kf2 {[%emt 0:01:11]} Qb2+ {[%emt 0:00:44]} 70. Kf3 {[%emt 0:00:59]} Qe5 {[%emt 0:00:52]} 71. Kf2 {[%emt 0:00:42]} Qe3+ {[%emt 0:00:43]} 72. Kf1 {[%emt 0:00:07]} Qc1+ {[%emt 0:00:39]} 73. Kf2 {[%emt 0:00:28]} Qc3 {[%emt 0:00:17]} 74. Qd6 {[%emt 0:00:58]} Qc2+ {[%emt 0:00:47]} 75. Kg1 {[%emt 0:00:22]} Qe2 {[%emt 0:00:26]} 76. Qh6+ {[%emt 0:00:42]} Qh5 {[%emt 0:00:15]} 77. Qd6 {[%emt 0:00:07]} Qg4+ {[%emt 0:00:42]} 78. Kf2 {[%emt 0:00:09]} Qh5 {[%emt 0:00:36]} 79. Qxa6 {[%emt 0:01:24]} Qh8 {[%emt 0:00:31]} 80. Qd6 {[%emt 0:00:24]} Kh3 {[%emt 0:00:33]} 81. Qd2 {[%emt 0:00:19]} Qh4+ {[%emt 0:00:28]} 82. Kf1 {[%emt 0:00:10]} f3 {[%emt 0:00:31]} 83. Qb2 {[%emt 0:01:20]} Qc4+ {[%emt 0:00:25]} 84. Kg1 {[%emt 0:00:05]} Qg4+ {[%emt 0:00:14]} 85. Kh1 {[%emt 0:00:05]} Qg2+ {[%emt 0:00:22]} 86. Qxg2+ {[%emt 0:00:05]} fxg2+ {[%emt 0:00:02]} 87. Kg1 {[%emt 0:00:06]} g4 {[%emt 0:00:09]} 0-1

[Event "69th RUS-ch Women Higher League 2019"]
[Site "Yaroslavl"]
[Date "2019.07.03"]
[Round "6.18"]
[White "Utiatskaja, Irina"]
[Black "Komiagina, Maria"]
[Result "0-1"]
[ECO "B67"]
[WhiteElo "2192"]
[BlackElo "2254"]
[Annotator "NA"]
[PlyCount "120"]
[EventDate "2019.06.27"]
[EventType "swiss"]
[EventCountry "RUS"]
[SourceTitle "playchess.com"]
[Source "ChessBase"]
[SourceQuality "1"]
[TimeControl "40/5400+30:1800+30"]

1. e4 {[%emt 0:00:00]} c5 {[%emt 0:00:00]} 2. Nf3 {[%emt 0:00:00]} Nc6 {[%emt 0:00:00]} 3. d4 {[%emt 0:00:00]} cxd4 {[%emt 0:00:00]} 4. Nxd4 {[%emt 0:00:00]} Nf6 {[%emt 0:00:01]} 5. Nc3 {[%emt 0:00:11]} d6 {[%emt 0:00:06]} 6. Bg5 {[%emt 0:00:56]} e6 {[%emt 0:00:07]} 7. Qd2 {[%emt 0:00:20]} a6 {[%emt 0:00:06]} 8. O-O-O {[%emt 0:00:43]} Bd7 {[%emt 0:00:18]} 9. f3 {[%emt 0:01:05]} Rc8 {[%emt 0:00:38]} 10. Kb1 {[%emt 0:01:31]} Be7 {[%emt 0:00:33]} 11. h4 {[%emt 0:00:20]} b5 {[%emt 0:01:32]} 12. Nxc6 {[%emt 0:01:36]} Bxc6 {[%emt 0:00:08]} 13. Ne2 {[%emt 0:00:09]} h6 {[%emt 0:03:26]} 14. Be3 {[%emt 0:00:56]} h5 {[%emt 0:00:07]} 15. Nd4 {[%emt 0:09:56]} Bb7 {[%emt 0:00:29]} 16. Bd3 {[%emt 0:01:25]} Nd7 {[%emt 0:01:49]} 17. g4 {[%emt 0:06:48]} hxg4 {[%emt 0:00:48]} 18. fxg4 {[%emt 0:00:07]} Nc5 {[%emt 0:00:42]} 19. Qg2 {[%emt 0:10:07]} Qc7 {[%emt 0:02:35]} 20. Nb3 {[%emt 0:11:01]} Bf6 {[%emt 0:17:44]} 21. Nxc5 {[%emt 0:05:05]} dxc5 {[%emt 0:00:09]} 22. g5 {[%emt 0:00:50]} Be5 {[%emt 0:00:43]} 23. g6 {[%emt 0:08:46]} f5 {[%emt 0:00:32]} 24. c3 {[%emt 0:00:33]} Rd8 {[%emt 0:09:14]} 25. Bc2 {[%emt 0:03:21]} Rxd1+ {[%emt 0:02:26]} 26. Rxd1 {[%emt 0:00:06]} Rxh4 {[%emt 0:00:26]} 27. Bg5 {[%emt 0:12:07]} Rh2 {[%emt 0:02:03]} 28. Qg1 {[%emt 0:01:47]} Rxc2 {[%emt 0:04:33]} 29. Kxc2 {[%emt 0:08:17]} Bxe4+ {[%emt 0:00:07]} 30. Kc1 {[%emt 0:00:01]} Bd5 {[%emt 0:00:53]} 31. Kb1 {[%emt 0:06:30]} Kd7 {[%emt 0:01:27]} 32. Be3 {[%emt 0:03:43]} Bd6 {[%emt 0:01:43]} 33. Ka1 {[%emt 0:05:31]} Kc6 {[%emt 0:00:59]} 34. b4 {[%emt 0:00:49]} Be5 {[%emt 0:02:10]} 35. Bxc5 {[%emt 0:01:05]} Bxc3+ {[%emt 0:00:43]} 36. Kb1 {[%emt 0:00:03]} Qf4 {[%emt 0:01:51]} 37. Qe3 {[%emt 0:01:23]} Qxe3 {[%emt 0:06:17]} 38. Bxe3 {[%emt 0:00:06]} Be4+ 39. Kc1 Bf6 {[%emt 0:09:43]} 40. Kd2 {[%emt 0:00:00]} Bd5 {[%emt 0:00:00]} 41. Rc1+ {[%emt 0:07:20]} Bc4 {[%emt 0:00:17]} 42. a4 {[%emt 0:00:35]} Kd5 {[%emt 0:06:39]} 43. a5 {[%emt 0:04:17]} e5 {[%emt 0:12:01]} 44. Rh1 {[%emt 0:01:44]} f4 {[%emt 0:00:08]} 45. Bc5 {[%emt 0:00:07]} e4 {[%emt 0:00:17]} 46. Rh8 {[%emt 0:04:25]} e3+ {[%emt 0:02:21]} 47. Bxe3 {[%emt 0:00:18]} fxe3+ {[%emt 0:00:05]} 48. Kxe3 {[%emt 0:00:02]} Bg5+ {[%emt 0:11:47]} 49. Kf2 {[%emt 0:00:42]} Kd4 {[%emt 0:01:58]} 50. Ra8 {[%emt 0:00:58]} Kc3 {[%emt 0:01:31]} 51. Rxa6 {[%emt 0:00:53]} Kxb4 {[%emt 0:00:10]} 52. Ra7 {[%emt 0:01:11]} Bf6 {[%emt 0:00:37]} 53. Ke3 {[%emt 0:00:11]} Kc3 {[%emt 0:02:43]} 54. Rd7 {[%emt 0:01:14]} b4 {[%emt 0:00:22]} 55. Rd6 {[%emt 0:01:36]} b3 {[%emt 0:02:32]} 56. a6 {[%emt 0:05:32]} b2 {[%emt 0:00:11]} 57. a7 {[%emt 0:01:56]} b1=Q {[%emt 0:00:30]} 58. a8=Q {[%emt 0:00:07]} Qe1+ {[%emt 0:01:14]} 59. Kf4 {[%emt 0:00:21]} Qh4+ {[%emt 0:01:48]} 60. Ke3 {[%emt 0:01:25]} Bg5+ {[%emt 0:00:13] Kd4+} 0-1

[Event "69th RUS-ch Women Higher League 2019"]
[Site "Yaroslavl"]
[Date "2019.07.03"]
[Round "6.19"]
[White "Chernyak, Viktoria"]
[Black "Markelova, Lubov"]
[Result "1-0"]
[ECO "D45"]
[WhiteElo "2253"]
[BlackElo "2186"]
[Annotator "NA"]
[PlyCount "93"]
[EventDate "2019.06.27"]
[EventType "swiss"]
[EventCountry "RUS"]
[SourceTitle "playchess.com"]
[Source "ChessBase"]
[SourceQuality "1"]
[TimeControl "40/5400+30:1800+30"]

1. d4 {[%emt 0:00:00]} d5 {[%emt 0:00:00]} 2. c4 {[%emt 0:00:00]} c6 {[%emt 0:00:00]} 3. Nc3 {[%emt 0:00:00]} Nf6 {[%emt 0:00:00]} 4. e3 {[%emt 0:00:00]} e6 {[%emt 0:00:37]} 5. Nf3 {[%emt 0:00:01]} Nbd7 {[%emt 0:00:08]} 6. Qc2 {[%emt 0:00:57]} Bd6 {[%emt 0:00:12]} 7. Bd3 {[%emt 0:00:25]} dxc4 {[%emt 0:01:32]} 8. Bxc4 {[%emt 0:00:07]} b5 {[%emt 0:00:18]} 9. Be2 {[%emt 0:02:11]} Bb7 {[%emt 0:02:49]} 10. O-O {[%emt 0:01:24]} O-O {[%emt 0:00:07]} 11. e4 e5 {[%emt 0:00:18]} 12. dxe5 {[%emt 0:01:27]} Nxe5 {[%emt 0:00:51]} 13. Nd4 {[%emt 0:00:07]} Neg4 {[%emt 0:04:34]} 14. g3 {[%emt 0:00:58]} Bxg3 {[%emt 0:10:44]} 15. hxg3 {[%emt 0:00:16]} Qxd4 {[%emt 0:00:22]} 16. Qd1 {[%emt 0:02:14]} Qxd1 {[%emt 0:05:49]} 17. Rxd1 {[%emt 0:00:30]} Rad8 {[%emt 0:09:48]} 18. Bf4 {[%emt 0:07:16]} Rxd1+ {[%emt 0:05:08]} 19. Rxd1 {[%emt 0:02:32]} Re8 {[%emt 0:05:54]} 20. f3 {[%emt 0:07:15]} Ne5 {[%emt 0:03:08]} 21. b4 {[%emt 0:01:48]} Ned7 {[%emt 0:05:17]} 22. Kf2 {[%emt 0:10:04]} a6 {[%emt 0:06:05]} 23. Bd6 {[%emt 0:05:03]} g5 {[%emt 0:07:41]} 24. Bd3 {[%emt 0:05:48]} Re6 {[%emt 0:05:18]} 25. Bc2 {[%emt 0:01:13]} Ne5 {[%emt 0:05:19]} 26. Bb3 {[%emt 0:10:33]} Re8 {[%emt 0:01:21]} 27. Bc5 {[%emt 0:01:40]} Bc8 {[%emt 0:04:34]} 28. Rd6 {[%emt 0:07:42]} Be6 {[%emt 0:04:50]} 29. f4 {[%emt 0:06:23]} Nfg4+ {[%emt 0:00:40]} 30. Kg2 {[%emt 0:01:35]} Nc4 {[%emt 0:02:29]} 31. Rxc6 {[%emt 0:09:23]} Rd8 {[%emt 0:00:49]} 32. Bxc4 {[%emt 0:00:34]} Bxc4 {[%emt 0:01:55]} 33. Bd6 {[%emt 0:00:32]} gxf4 {[%emt 0:04:38]} 34. gxf4 {[%emt 0:00:40]} Ne3+ {[%emt 0:02:03]} 35. Kf2 {[%emt 0:02:01]} Nc2 {[%emt 0:00:30]} 36. Rxa6 {[%emt 0:00:25]} Rc8 {[%emt 0:01:05]} 37. f5 {[%emt 0:02:26]} h5 {[%emt 0:00:48]} 38. Kg3 {[%emt 0:01:01]} Kh7 {[%emt 0:00:21]} 39. Bc5 {[%emt 0:02:33]} Rg8+ {[%emt 0:00:35]} 40. Kh4 {[%emt 0:00:00]} Ne1 {[%emt 0:00:00]} 41. Kxh5 {[%emt 0:03:00]} Rg2 {[%emt 0:09:36]} 42. Rh6+ {[%emt 0:17:58]} Kg8 {[%emt 0:00:18]} 43. Rd6 {[%emt 0:01:32]} Nf3 {[%emt 0:04:36]} 44. Be3 {[%emt 0:01:36]} f6 {[%emt 0:14:16]} 45. Nd5 {[%emt 0:04:29]} Be2 {[%emt 0:01:09]} 46. Rd8+ {[%emt 0:03:59]} Kf7 {[%emt 0:01:58]} 47. Rd7+ {[%emt 0:00:16]} 1-0

[Event "69th RUS-ch Women Higher League 2019"]
[Site "Yaroslavl"]
[Date "2019.07.03"]
[Round "6.20"]
[White "Mokshanova, Elizaveta"]
[Black "Chkhan, Viktoria"]
[Result "0-1"]
[ECO "A08"]
[WhiteElo "2020"]
[BlackElo "2141"]
[Annotator "NA"]
[PlyCount "84"]
[EventDate "2019.06.27"]
[EventType "swiss"]
[EventCountry "RUS"]
[SourceTitle "playchess.com"]
[Source "ChessBase"]
[SourceQuality "1"]
[TimeControl "40/5400+30:1800+30"]

1. e4 {[%emt 0:00:00]} e6 {[%emt 0:00:00]} 2. d3 {[%emt 0:00:00]} d5 {[%emt 0:00:00]} 3. Nd2 {[%emt 0:00:00]} Nf6 {[%emt 0:00:14]} 4. g3 {[%emt 0:00:00]} Be7 {[%emt 0:00:15]} 5. Bg2 {[%emt 0:00:08]} O-O {[%emt 0:00:06]} 6. Ngf3 {[%emt 0:00:30]} c5 {[%emt 0:00:11]} 7. O-O {[%emt 0:00:22]} Nc6 {[%emt 0:00:12]} 8. Re1 {[%emt 0:00:08]} b5 {[%emt 0:00:52]} 9. exd5 {[%emt 0:00:35]} exd5 {[%emt 0:01:01]} 10. d4 {[%emt 0:00:43]} Qb6 {[%emt 0:09:00]} 11. a4 {[%emt 0:07:27]} bxa4 {[%emt 0:06:52]} 12. Rxa4 {[%emt 0:01:05]} Bf5 {[%emt 0:14:44]} 13. Nf1 {[%emt 0:14:33]} cxd4 {[%emt 0:02:09]} 14. Nxd4 {[%emt 0:02:44]} Nxd4 {[%emt 0:02:05]} 15. Rxd4 {[%emt 0:01:12]} Bc5 {[%emt 0:00:48]} 16. Rf4 {[%emt 0:00:32]} Be4 {[%emt 0:05:27]} 17. Bxe4 {[%emt 0:07:56]} dxe4 {[%emt 0:00:58]} 18. Ne3 {[%emt 0:02:04]} Rfd8 {[%emt 0:03:00]} 19. Qe2 {[%emt 0:00:16]} Bxe3 {[%emt 0:06:16]} 20. Qxe3 {[%emt 0:11:15]} Qe6 {[%emt 0:00:50]} 21. Qc5 {[%emt 0:09:09]} Rd5 {[%emt 0:03:29]} 22. Qb4 {[%emt 0:02:00]} a5 {[%emt 0:15:35]} 23. Qb3 {[%emt 0:04:49]} Rad8 {[%emt 0:01:56]} 24. Qc3 {[%emt 0:07:44]} Rd1 {[%emt 0:11:10]} 25. h4 {[%emt 0:09:23]} Qh3 {[%emt 0:08:45]} 26. Be3 {[%emt 0:03:40]} Ng4 {[%emt 0:03:42]} 27. Bb6 {[%emt 0:00:38]} Rxe1+ {[%emt 0:01:10]} 28. Qxe1 {[%emt 0:00:06]} Re8 {[%emt 0:01:11]} 29. Qd1 {[%emt 0:01:43]} h5 {[%emt 0:01:39]} 30. Qd5 {[%emt 0:05:34]} Ne5 {[%emt 0:00:23]} 31. Qb5 {[%emt 0:01:15]} Re6 {[%emt 0:00:46]} 32. Qf1 {[%emt 0:05:15]} Qxf1+ {[%emt 0:00:09]} 33. Kxf1 {[%emt 0:00:04]} Rxb6 {[%emt 0:00:03]} 34. Rxe4 {[%emt 0:00:15]} f6 {[%emt 0:00:13]} 35. b3 {[%emt 0:00:24]} Rc6 {[%emt 0:00:46]} 36. f4 {[%emt 0:00:37]} Nd7 {[%emt 0:00:58]} 37. Rd4 {[%emt 0:00:33]} Nb6 {[%emt 0:00:27]} 38. c4 {[%emt 0:00:10]} Kf7 {[%emt 0:00:29]} 39. Kf2 {[%emt 0:00:09]} a4 {[%emt 0:00:50]} 40. bxa4 {[%emt 0:00:00]} Rxc4 {[%emt 0:00:00]} 41. Rd6 {[%emt 0:01:39]} Nxa4 {[%emt 0:00:53]} 42. Rd7+ {[%emt 0:00:03]} Kg6 {[%emt 0:00:10]} 0-1

[Event "69th RUS-ch Women Higher League 2019"]
[Site "Yaroslavl"]
[Date "2019.07.03"]
[Round "6.22"]
[White "Schepetkova, Margarita"]
[Black "Faizutdinova, Diana"]
[Result "1/2-1/2"]
[ECO "A53"]
[WhiteElo "2241"]
[BlackElo "2061"]
[Annotator "NA"]
[PlyCount "120"]
[EventDate "2019.06.27"]
[EventType "swiss"]
[EventCountry "RUS"]
[SourceTitle "playchess.com"]
[Source "ChessBase"]
[SourceQuality "1"]
[TimeControl "40/5400+30:1800+30"]

1. d4 {[%emt 0:00:00]} Nf6 {[%emt 0:00:00]} 2. c4 {[%emt 0:00:00]} d6 {[%emt 0:00:00]} 3. g3 {[%emt 0:00:00]} c6 {[%emt 0:00:19]} 4. Bg2 {[%emt 0:00:20]} e5 {[%emt 0:03:30]} 5. dxe5 {[%emt 0:02:55]} dxe5 {[%emt 0:00:08]} 6. Qxd8+ {[%emt 0:00:42]} Kxd8 {[%emt 0:00:03]} 7. Nf3 {[%emt 0:00:55]} Bd6 {[%emt 0:02:49]} 8. Nc3 {[%emt 0:03:44]} Be6 {[%emt 0:01:28]} 9. b3 {[%emt 0:00:09]} h6 {[%emt 0:04:34]} 10. O-O {[%emt 0:02:03]} Nbd7 {[%emt 0:03:41]} 11. Bb2 {[%emt 0:00:32]} Ke7 {[%emt 0:10:22]} 12. Nd2 {[%emt 0:03:29]} Rhd8 {[%emt 0:11:10]} 13. Nde4 {[%emt 0:00:56]} Bb4 {[%emt 0:01:45]} 14. Rac1 {[%emt 0:06:25]} Nxe4 {[%emt 0:14:56]} 15. Nxe4 {[%emt 0:00:05]} f5 {[%emt 0:01:00]} 16. Nc3 {[%emt 0:00:16]} a5 {[%emt 0:01:06]} 17. Rc2 {[%emt 0:03:08]} Rac8 {[%emt 0:07:30]} 18. Na4 {[%emt 0:00:41]} b5 {[%emt 0:01:50]} 19. cxb5 {[%emt 0:03:55]} cxb5 {[%emt 0:00:03]} 20. Nc3 {[%emt 0:00:05]} e4 {[%emt 0:11:48]} 21. Rfc1 {[%emt 0:01:05]} Rb8 {[%emt 0:00:14]} 22. Nd1 {[%emt 0:02:49]} g6 {[%emt 0:01:34]} 23. f3 {[%emt 0:00:39]} Bc5+ {[%emt 0:03:56]} 24. Kf1 {[%emt 0:01:26]} exf3 {[%emt 0:00:04]} 25. Bxf3 {[%emt 0:00:05]} b4 {[%emt 0:01:31]} 26. Bg7 {[%emt 0:04:19]} h5 {[%emt 0:00:26]} 27. Bh6 {[%emt 0:00:18]} Bd4 {[%emt 0:01:46]} 28. Nb2 {[%emt 0:01:16]} Nf6 {[%emt 0:02:27]} 29. Na4 {[%emt 0:02:15]} Rbc8 {[%emt 0:01:46]} 30. Bf4 {[%emt 0:05:00]} Rxc2 {[%emt 0:02:28]} 31. Rxc2 {[%emt 0:00:01]} Nd5 {[%emt 0:00:45]} 32. Bg5+ {[%emt 0:01:25]} Bf6 {[%emt 0:00:06]} 33. Bxd5 {[%emt 0:03:19]} Bxg5 {[%emt 0:02:59]} 34. Bxe6 {[%emt 0:00:17]} Rd1+ {[%emt 0:00:26]} 35. Kf2 {[%emt 0:00:08]} Kxe6 {[%emt 0:00:02]} 36. Nc5+ {[%emt 0:02:21]} Kd5 {[%emt 0:05:22]} 37. Nd3 {[%emt 0:00:16]} Kd6 {[%emt 0:00:28]} 38. Rc8 {[%emt 0:00:58]} Ra1 {[%emt 0:01:57]} 39. Rg8 {[%emt 0:00:17]} Kd5 {[%emt 0:02:00]} 40. Rxg6 {[%emt 0:00:00]} Bd2 {[%emt 0:00:00]} 41. Nb2 {[%emt 0:06:30]} Rxa2 {[%emt 0:04:34]} 42. Nc4 {[%emt 0:00:08]} a4 {[%emt 0:05:16]} 43. Nb6+ {[%emt 0:05:48]} Kc5 {[%emt 0:05:39]} 44. Nxa4+ {[%emt 0:00:31]} Rxa4 {[%emt 0:09:03]} 45. bxa4 {[%emt 0:00:02]} b3 {[%emt 0:00:04]} 46. Rg8 {[%emt 0:00:02]} b2 {[%emt 0:00:04]} 47. Rc8+ {[%emt 0:00:04]} Kb4 {[%emt 0:00:24]} 48. Rb8+ {[%emt 0:01:46]} Ka3 {[%emt 0:00:03]} 49. Rxb2 {[%emt 0:00:36]} Kxb2 {[%emt 0:00:04]} 50. Kf3 {[%emt 0:00:04]} Kb3 {[%emt 0:04:48]} 51. a5 {[%emt 0:00:44]} Bxa5 {[%emt 0:00:07]} 52. Kf4 {[%emt 0:00:02]} Bd8 {[%emt 0:03:36]} 53. Kxf5 {[%emt 0:00:10]} Kc4 {[%emt 0:00:51]} 54. h3 {[%emt 0:05:58]} Kd4 {[%emt 0:00:28]} 55. e4 {[%emt 0:00:08]} Bc7 {[%emt 0:00:32]} 56. g4 {[%emt 0:00:13]} hxg4 {[%emt 0:00:03]} 57. hxg4 {[%emt 0:00:03]} Be5 {[%emt 0:00:10]} 58. g5 {[%emt 0:00:03]} Bh8 {[%emt 0:00:09]} 59. g6 {[%emt 0:00:06]} Bg7 {[%emt 0:00:04]} 60. Ke6 {[%emt 0:00:09]} Kxe4 {[%emt 0:00:05]} 1/2-1/2